bitfinex/quotes_BTCUSD_20240820
["timestamp","ask_amount","ask_price","bid_price","bid_amount"]
[1724166348599,0.338,59161.0,59115.0,0.023]
[1724166348806,0.338,59161.0,59116.0,0.49567309]
[1724166349021,0.338,59161.0,59117.0,0.03383]
[1724166349022,0.37867047,59156.0,59117.0,0.03383]
[1724166349224,0.37867047,59156.0,59117.0,0.49229154]
[1724166349424,0.00090751,59151.0,59117.0,0.5101151]
[1724166349631,0.00090751,59151.0,59117.0,0.49229154]
[1724166349842,0.00090751,59151.0,59104.0,0.5069]
[1724166350054,0.001,59146.0,59106.0,0.49229154]
[1724166350272,0.1975,59143.0,59106.0,0.49229154]
[1724166350497,0.003,59140.0,59106.0,0.49229154]
[1724166350726,0.3497,59142.0,59106.0,0.49229154]
[1724166350727,0.27054,59141.0,59106.0,0.49229154]
[1724166350929,0.04077047,59139.0,59107.0,0.00338285]
[1724166351136,0.4497,59142.0,59107.0,0.052612]
[1724166351566,0.04077047,59141.0,59107.0,0.04922915]
[1724166351813,0.001,59134.0,59084.0,0.5069]
[1724166352054,0.001,59134.0,59097.0,0.49229154]
[1724166352055,0.135331,59115.0,59097.0,0.49229154]
[1724166352259,0.3379,59114.0,59097.0,0.49229154]
[1724166352467,0.3379,59114.0,59077.0,0.04922915]
[1724166352678,0.3379,59114.0,59098.0,0.49229154]
[1724166352886,0.3379,59114.0,59084.0,0.5069]
[1724166352887,0.3379,59114.0,59099.0,0.00338312]
[1724166353098,0.3379,59114.0,59077.0,0.04922915]
[1724166353307,0.3379,59114.0,59094.0,0.49229154]
[1724166353509,0.00741568,59113.0,59095.0,0.10008329]
[1724166353712,0.3379,59114.0,59096.0,0.00338329]
[1724166353932,0.3379,59114.0,59097.0,0.0967]
[1724166354148,0.3379,59114.0,59099.0,0.0967]
[1724166354362,0.3379,59114.0,59100.0,0.00338317]
[1724166354568,0.3379,59114.0,59099.0,0.0967]
[1724166355509,0.3379,59114.0,59099.0,0.06025124]
[1724166355895,0.473232,59114.0,59099.0,0.06025124]
[1724166356105,0.10764143,59113.0,59099.0,0.06025124]
[1724166356797,0.10764143,59113.0,59100.0,0.00338384]
[1724166357699,0.10764143,59113.0,59099.0,0.06025124]
[1724166358265,0.10764143,59113.0,59099.0,0.02650687]
[1724166358493,0.10764143,59113.0,59076.0,0.49229154]
[1724166358689,0.135347,59108.0,59076.0,0.49229154]
[1724166358846,0.3845,59109.0,59076.0,0.49229154]
[1724166359048,0.0075601,59107.0,59076.0,0.49229154]
[1724166359349,0.00757417,59106.0,59077.0,0.00338419]
[1724166359727,0.1,59113.0,59077.0,0.00338361]
[1724166359930,0.1,59113.0,59066.0,0.001]
[1724166359931,0.270688,59109.0,59066.0,0.001]
[1724166360090,0.135361,59101.0,59074.0,0.49229154]
[1724166360283,0.270699,59107.0,59075.0,0.49229154]
[1724166360284,0.00753908,59100.0,59075.0,0.49229154]
[1724166360484,0.05518372,59100.0,59075.0,0.49229154]
[1724166360712,0.05518372,59100.0,59055.0,0.000825]
[1724166360713,0.42994464,59098.0,59055.0,0.000825]
[1724166360930,0.42994464,59098.0,59063.0,0.49229154]
[1724166360931,0.04764464,59086.0,59063.0,0.49229154]
[1724166361087,0.34545435,59085.0,59063.0,0.49229154]
[1724166361492,0.04764464,59083.0,59063.0,0.49311554]
[1724166361720,0.00750761,59082.0,59064.0,0.00338499]
[1724166362892,0.00750761,59082.0,59069.0,0.001]
[1724166363143,0.04831122,59099.0,59074.0,0.001]
[1724166363379,0.00760975,59098.0,59080.0,0.0986]
[1724166363560,0.00760975,59098.0,59082.0,0.0986]
[1724166363766,0.38701122,59110.0,59084.0,0.0986]
[1724166363970,0.38701122,59110.0,59086.0,0.0986]
[1724166363971,0.3387,59110.0,59086.0,0.0986]
[1724166364172,0.04837075,59113.0,59088.0,0.0986]
[1724166364341,0.04837075,59115.0,59089.0,0.00338314]
[1724166364544,0.04837075,59114.0,59090.0,0.00338308]
[1724166364754,0.04837075,59114.0,59068.0,0.03383]
[1724166365006,0.04837075,59114.0,59075.0,0.49229154]
[1724166365129,0.04837075,59110.0,59077.0,0.001]
[1724166365335,0.05382162,59113.0,59080.0,0.001]
[1724166365336,0.04837075,59113.0,59080.0,0.001]
[1724166365539,0.04837075,59113.0,59081.0,0.00338327]
[1724166365769,0.04837075,59115.0,59085.0,0.001]
[1724166365976,0.4109,59127.0,59085.0,0.001]
[1724166365977,0.04837075,59117.0,59086.0,0.00338298]
[1724166366181,0.04837075,59117.0,59086.0,0.00438298]
[1724166366432,0.07255612,59120.0,59086.0,0.00438298]
[1724166366433,0.04837075,59120.0,59087.0,0.024]
[1724166366608,0.04837075,59120.0,59088.0,0.00338284]
[1724166366816,0.35,59124.0,59091.0,0.001]
[1724166366817,0.04837075,59122.0,59091.0,0.001]
[1724166367070,0.07255612,59125.0,59091.0,0.001]
[1724166367071,0.04837075,59125.0,59092.0,0.05555011]
[1724166367308,0.04837075,59125.0,59094.0,0.001]
[1724166367523,0.04837075,59127.0,59096.0,0.001]
[1724166367690,0.07255612,59131.0,59096.0,0.001]
[1724166367691,0.04837075,59133.0,59105.0,0.49229154]
[1724166367891,0.04837075,59142.0,59111.0,0.001]
[1724166368055,0.04837075,59145.0,59115.0,0.001]
[1724166368272,0.07255612,59148.0,59117.0,0.001]
[1724166368273,0.04837075,59148.0,59117.0,0.001]
[1724166368523,0.0117967,59166.0,59130.0,0.001]
[1724166368524,0.04842092,59157.0,59130.0,0.001]
[1724166368893,0.0117967,59166.0,59130.0,0.001]
[1724166368894,0.04842488,59161.0,59131.0,0.00438045]
[1724166369087,0.04842488,59161.0,59121.0,0.03383]
[1724166369088,0.06022158,59166.0,59127.0,0.001]
[1724166369318,0.0117967,59166.0,59127.0,0.49329154]
[1724166369536,0.0117967,59166.0,59130.0,0.001]
[1724166369739,0.05555883,59166.0,59131.0,0.0033803]
[1724166369939,0.05555883,59166.0,59132.0,0.023]
[1724166370142,0.0117967,59166.0,59132.0,0.02638033]
[1724166370378,0.0117967,59166.0,59127.0,0.49229154]
[1724166370379,0.04376213,59165.0,59127.0,0.49229154]
[1724166370574,0.04376213,59165.0,59128.0,0.07222915]
[1724166370776,0.0117967,59166.0,59128.0,0.07222915]
[1724166370970,0.0101967,59166.0,59131.0,0.001]
[1724166371247,0.0101967,59166.0,59128.0,0.07222915]
[1724166371248,0.0093967,59166.0,59134.0,0.001]
[1724166371451,0.0093967,59166.0,59135.0,0.00338008]
[1724166371639,0.04376213,59165.0,59136.0,0.49229154]
[1724166371848,0.04376213,59165.0,59137.0,0.023]
[1724166372059,0.0093967,59166.0,59138.0,0.00338019]
[1724166372420,0.05315883,59166.0,59138.0,0.00338019]
[1724166372623,0.05315883,59166.0,59139.0,0.49567171]
[1724166372883,0.0093967,59166.0,59140.0,0.07256717]
[1724166373002,0.05315883,59166.0,59124.0,0.03483]
[1724166373207,0.05315883,59166.0,59131.0,0.49229154]
[1724166373470,0.04376213,59165.0,59131.0,0.49229154]
[1724166373700,0.04376213,59165.0,59132.0,0.0912]
[1724166373909,0.04376213,59165.0,59133.0,0.49229154]
[1724166374109,0.04376213,59165.0,59148.0,0.49229154]
[1724166374260,0.1093967,59166.0,59134.0,0.06172992]
[1724166374261,0.0093967,59166.0,59138.0,0.0912]
[1724166374460,0.0093967,59166.0,59134.0,0.05834915]
[1724166374461,0.05315883,59166.0,59140.0,0.0912]
[1724166374635,0.05315883,59166.0,59142.0,0.0965]
[1724166374836,0.05315883,59166.0,59144.0,0.0965]
[1724166377770,0.04376213,59163.0,59135.0,0.49229154]
[1724166377918,0.04376213,59163.0,59136.0,0.00338066]
[1724166378123,0.04376213,59163.0,59130.0,0.49229154]
[1724166378326,0.04376213,59163.0,59125.0,0.0958]
[1724166378576,0.001,59158.0,59126.0,0.49229154]
[1724166378747,0.001,59158.0,59125.0,0.0958]
[1724166378749,0.4,59151.0,59125.0,0.0958]
[1724166378952,0.4,59151.0,59127.0,0.48271155]
[1724166379154,0.4,59151.0,59129.0,0.49229154]
[1724166379361,0.4,59151.0,59130.0,0.00338118]
[1724166379564,0.14839278,59159.0,59130.0,0.00338118]
[1724166379758,0.5,59159.0,59125.0,0.0958]
[1724166379963,0.54096962,59158.0,59125.0,0.0958]
[1724166380171,0.001,59155.0,59125.0,0.0958]
[1724166380369,0.001,59155.0,59126.0,0.49229154]
[1724166380370,0.04867808,59154.0,59126.0,0.49229154]
[1724166380576,0.001,59150.0,59125.0,0.0958]
[1724166380779,0.003,59151.0,59126.0,0.49229154]
[1724166380980,0.14867808,59154.0,59127.0,0.0033816]
[1724166381199,0.14867808,59154.0,59105.0,0.004]
[1724166381200,0.135255,59148.0,59098.0,0.001]
[1724166381404,0.05167808,59151.0,59095.0,0.004]
[1724166381405,0.44677808,59147.0,59120.0,0.49229154]
[1724166381669,0.44677808,59147.0,59095.0,0.004]
[1724166381670,0.44677808,59147.0,59106.0,0.0924]
[1724166381671,0.003,59134.0,59106.0,0.0924]
[1724166381841,0.04867808,59133.0,59112.0,0.49229154]
[1724166382045,0.04867808,59133.0,59113.0,0.00338255]
[1724166382520,0.1,59134.0,59113.0,0.00338255]
[1724166382892,0.4113,59135.0,59113.0,0.00338255]
[1724166383164,0.4113,59135.0,59106.0,0.0924]
[1724166383165,0.4113,59135.0,59107.0,0.00338191]
[1724166383344,0.4113,59135.0,59106.0,0.0924]
[1724166383345,0.4113,59135.0,59106.0,0.10164]
[1724166383557,0.4113,59135.0,59106.0,0.0924]
[1724166383558,0.1,59134.0,59106.0,0.0924]
[1724166383758,0.07558917,59130.0,59106.0,0.0924]
[1724166384029,0.27158917,59129.0,59106.0,0.0924]
[1724166384234,0.27158917,59129.0,59092.0,0.067824]
[1724166384235,0.003,59122.0,59092.0,0.067824]
[1724166384435,0.003,59122.0,59076.0,0.001824]
[1724166384436,0.07258917,59118.0,59100.0,0.49229154]
[1724166384659,0.65758917,59111.0,59078.0,0.067838]
[1724166384973,0.65758917,59111.0,59084.0,0.49229154]
[1724166384974,0.003,59102.0,59084.0,0.49229154]
[1724166385158,0.003,59102.0,59076.0,0.000824]
[1724166385159,0.3883,59093.0,59076.0,0.000824]
[1724166385369,0.3883,59093.0,59081.0,0.49229154]
[1724166385574,0.3883,59093.0,59076.0,0.000824]
[1724166385575,0.3883,59093.0,59082.0,0.00338437]
[1724166385714,0.3883,59093.0,59076.0,0.000824]
[1724166385913,0.3883,59093.0,59077.0,0.00338444]
[1724166386166,0.3883,59093.0,59076.0,0.000824]
[1724166386570,0.07258917,59090.0,59076.0,0.000824]
[1724166386868,0.002,59091.0,59076.0,0.000824]
[1724166386869,0.07232013,59087.0,59076.0,0.000824]
[1724166387081,0.26672013,59084.0,59076.0,0.000824]
[1724166387262,0.07232013,59083.0,59076.0,0.000824]
[1724166387644,0.06732013,59081.0,59076.0,0.000824]
[1724166387782,0.1944,59084.0,59076.0,0.00049857]
[1724166387783,0.09642684,59077.0,59076.0,0.00049857]
[1724166388160,0.1,59078.0,59076.0,0.00049857]
[1724166388371,0.22053633,59078.0,59076.0,0.00049857]
[1724166388601,0.22053633,59078.0,59049.0,1.984875]
[1724166388602,0.001,59074.0,59050.0,0.03383]
[1724166388803,0.12057617,59073.0,59049.0,1.984875]
[1724166388999,0.1,59076.0,59049.0,1.984875]
[1724166389000,0.09646882,59072.0,59049.0,1.984875]
[1724166389200,0.1,59072.0,59049.0,1.984875]
[1724166389657,0.09646882,59074.0,59049.0,1.984875]
[1724166390088,0.4095,59071.0,59049.0,1.984875]
[1724166390290,0.09649267,59069.0,59049.0,1.984875]
[1724166390436,0.003,59065.0,59049.0,1.984875]
[1724166390636,0.09649267,59063.0,59049.0,1.984875]
[1724166390885,0.04824349,59059.0,59049.0,1.984875]
[1724166391101,0.44708699,59064.0,59049.0,1.984875]
[1724166391102,0.04824349,59061.0,59049.0,1.984875]
[1724166391291,0.04209018,59061.0,59049.0,1.984875]
[1724166391538,0.1944,59058.0,59049.0,1.984875]
[1724166391748,0.1,59057.0,59049.0,1.984875]
[1724166391949,0.08550388,59057.0,59049.0,1.984875]
[1724166392154,0.09748699,59054.0,59049.0,1.984875]
[1724166392363,0.4085,59050.0,59049.0,1.984875]
[1724166392767,0.40808692,59050.0,59049.0,1.984875]
[1724166393184,0.1894,59058.0,59049.0,1.984875]
[1724166393500,0.18927808,59058.0,59049.0,1.984875]
[1724166393972,0.135469,59054.0,59049.0,1.984875]
[1724166394183,0.001,59050.0,59049.0,1.984875]
[1724166394379,0.3391,59053.0,59049.0,1.984875]
[1724166394380,0.3391,59053.0,59049.0,1.784875]
[1724166394589,0.0118,59057.0,59049.0,1.784875]
[1724166395024,0.1118,59057.0,59049.0,1.784875]
[1724166395251,0.1128,59057.0,59049.0,1.784875]
[1724166395485,0.1118,59057.0,59049.0,1.784875]
[1724166395719,0.003,59054.0,59049.0,1.784875]
[1724166395928,0.001,59051.0,59049.0,1.784875]
[1724166396147,0.522778,59050.0,59049.0,1.784875]
[1724166396368,0.522778,59050.0,59049.0,0.98978751]
[1724166396369,1.06469,59050.0,59049.0,0.98978751]
[1724166396612,1.435646,59050.0,59049.0,0.98978751]
[1724166396835,1.435646,59050.0,59049.0,2.35998751]
[1724166397053,1.435646,59050.0,59049.0,1.28458751]
[1724166397054,1.618046,59050.0,59049.0,1.28458751]
[1724166397255,1.69574,59050.0,59049.0,1.09178751]
[1724166397463,0.99235,59050.0,59049.0,1.09178751]
[1724166397693,1.127828,59050.0,59049.0,1.09178751]
[1724166397909,1.398784,59050.0,59049.0,1.09178751]
[1724166398130,0.99235,59050.0,59049.0,1.09178751]
[1724166398532,1.66974,59050.0,59049.0,1.09178751]
[1724166398734,1.127828,59050.0,59049.0,1.09178751]
[1724166398953,0.99235,59050.0,59049.0,1.09178751]
[1724166399158,0.89235,59050.0,59049.0,1.09178751]
[1724166399988,0.50805,59050.0,59049.0,1.09178751]
[1724166400186,0.50805,59050.0,59049.0,1.09260851]
[1724166400406,0.50805,59050.0,59049.0,1.66180851]
[1724166400600,0.47040145,59050.0,59049.0,1.66180851]
[1724166401302,0.27040145,59050.0,59049.0,1.66180851]
[1724166401572,0.26048512,59050.0,59049.0,1.66180851]
[1724166401783,0.49229154,59074.0,59050.0,0.3752]
[1724166402197,0.135397,59086.0,59050.0,0.3752]
[1724166402198,0.3507,59083.0,59050.0,0.3752]
[1724166402827,0.27083,59078.0,59050.0,0.3752]
[1724166403026,0.27083,59078.0,59049.0,1.27950851]
[1724166403027,0.003,59082.0,59049.0,1.09260851]
[1724166403028,0.3796,59071.0,59049.0,1.09260851]
[1724166403179,0.621566,59070.0,59050.0,0.49229154]
[1724166403378,0.3507,59070.0,59049.0,1.09260851]
[1724166403539,0.1,59069.0,59049.0,1.09260851]
[1724166403951,0.1,59069.0,59050.0,0.00338634]
[1724166404183,0.1,59069.0,59049.0,1.09260851]
[1724166405029,0.1812,59077.0,59050.0,0.00338598]
[1724166405259,0.4006,59079.0,59050.0,0.00338598]
[1724166405399,0.50793,59076.0,59049.0,1.09260851]
[1724166405770,0.55112686,59076.0,59049.0,1.09260851]
[1724166405882,0.50793,59076.0,59049.0,1.09260851]
[1724166406083,0.270848,59074.0,59049.0,1.09260851]
[1724166406348,0.50793,59073.0,59054.0,0.49229154]
[1724166406609,0.50793,59073.0,59049.0,1.09260851]
[1724166406818,0.50793,59073.0,59051.0,0.49229154]
[1724166406819,0.1,59072.0,59051.0,0.49229154]
[1724166407022,0.1,59072.0,59049.0,1.09260851]
[1724166407023,0.50793,59071.0,59053.0,0.49229154]
[1724166407146,0.235433,59070.0,59049.0,1.09260851]
[1724166407351,0.50793,59069.0,59049.0,1.09260851]
[1724166407530,0.50793,59069.0,59052.0,0.49229154]
[1724166407734,0.50793,59069.0,59050.0,0.70686085]
[1724166407735,0.50793,59069.0,59053.0,0.00338577]
[1724166408430,0.50793,59069.0,59050.0,0.5976]
[1724166408610,0.50793,59069.0,59051.0,0.0033858]
[1724166409222,0.50793,59069.0,59050.0,0.5976]
[1724166409442,0.1,59068.0,59050.0,0.5976]
[1724166409778,0.50793,59067.0,59050.0,0.5976]
[1724166410190,0.1,59066.0,59050.0,0.199]
[1724166410394,0.70533,59065.0,59049.0,1.09260851]
[1724166410620,0.1,59064.0,59049.0,1.09260851]
[1724166410819,0.270916,59059.0,59049.0,1.09260851]
[1724166411019,0.60793,59058.0,59049.0,1.09260851]
[1724166411230,0.135467,59055.0,59049.0,1.09260851]
[1724166411400,0.85853,59054.0,59049.0,1.09260851]
[1724166411629,0.135478,59050.0,59049.0,1.09260851]
[1724166411821,0.914364,59050.0,59049.0,1.09260851]
[1724166412020,1.28532,59050.0,59049.0,2.75204132]
[1724166413308,1.014364,59050.0,59049.0,2.75204132]
[1724166413557,0.743408,59050.0,59049.0,2.75204132]
[1724166414102,1.026164,59050.0,59049.0,2.75204132]
[1724166414281,0.61973,59050.0,59049.0,2.75204132]
[1724166414482,0.51973,59050.0,59049.0,2.75204132]
[1724166414721,0.50793,59050.0,59049.0,2.75204132]
[1724166415200,0.914364,59050.0,59049.0,2.75204132]
[1724166415433,0.91643,59050.0,59049.0,2.75204132]
[1724166416261,0.50793,59050.0,59049.0,2.75204132]
[1724166417958,0.50793,59050.0,59049.0,2.93334132]
[1724166418168,0.50793,59050.0,59049.0,2.75204132]
[1724166420274,0.50793,59050.0,59049.0,3.13914132]
[1724166420490,0.30793,59050.0,59049.0,3.31954132]
[1724166420909,0.30793,59050.0,59049.0,3.13914132]
[1724166421118,0.30793,59050.0,59049.0,2.75204132]
[1724166422209,1.08532,59050.0,59049.0,2.75204132]
[1724166422439,0.40793,59050.0,59049.0,2.75204132]
[1724166422913,0.681886,59050.0,59049.0,2.75204132]
[1724166423155,1.956276,59050.0,59049.0,2.67636461]
[1724166423358,1.956276,59050.0,59049.0,2.07636461]
[1724166423359,2.08032886,59050.0,59049.0,2.07636461]
[1724166423563,1.84157286,59050.0,59049.0,2.04416461]
[1724166423773,1.797376,59050.0,59049.0,2.04416461]
[1724166423976,1.798376,59050.0,59049.0,2.04416461]
[1724166424223,1.797376,59050.0,59049.0,2.04416461]
[1724166424738,1.229464,59050.0,59049.0,2.04416461]
[1724166425028,0.69040882,59050.0,59049.0,2.04416461]
[1724166425550,0.69040882,59050.0,59017.0,0.0024]
[1724166426283,0.69040882,59050.0,58975.0,0.3777]
[1724166426284,0.001,58974.0,58901.0,0.00492166]
[1724166426288,0.1945,58997.0,58943.0,0.067988]
[1724166426289,0.001,58964.0,58943.0,0.067988]
[1724166426291,0.271247,58987.0,58943.0,0.067988]
[1724166426292,0.003,58957.0,58943.0,0.067988]
[1724166426541,0.002,58963.0,58901.0,0.00492166]
[1724166426542,0.04823697,58959.0,58956.0,0.49229154]
[1724166426831,0.09647394,58965.0,58901.0,0.00492166]
[1724166426832,0.04823697,58965.0,58941.0,0.01]
[1724166427069,1.92777125,58973.0,58942.0,0.00339159]
[1724166427070,0.003,58966.0,58942.0,0.00339159]
[1724166427312,1.80717882,58973.0,58925.0,0.03383]
[1724166427313,0.49229154,58970.0,58925.0,0.03383]
[1724166427561,0.002,58971.0,58930.0,0.52612154]
[1724166427562,0.003,58971.0,58930.0,0.52612154]
[1724166427824,0.001,58968.0,58931.0,0.25383627]
[1724166428168,0.003,58968.0,58931.0,0.03722114]
[1724166428380,0.003,58968.0,58937.0,0.03383]
[1724166428381,0.001,58958.0,58937.0,0.03383]
[1724166428659,0.001,58956.0,58938.0,0.00339186]
[1724166428933,0.001,58956.0,58901.0,0.00492166]
[1724166428934,0.001,58956.0,58940.0,0.3971]
[1724166429225,0.001,58948.0,58940.0,0.3971]
[1724166429471,0.002,58952.0,58929.0,0.1937]
[1724166429472,0.001,58942.0,58929.0,0.1937]
[1724166429765,0.30750882,58947.0,58930.0,0.00339277]
[1724166430011,1.49967,58942.0,58929.0,0.1937]
[1724166430259,1.49967,58942.0,58903.0,0.10038262]
[1724166430260,1.49967,58942.0,58921.0,0.1937]
[1724166430517,0.04823697,58939.0,58921.0,0.1937]
[1724166430811,0.30750882,58938.0,58921.0,0.1937]
[1724166431296,0.30750882,58938.0,58922.0,0.0033936]
[1724166431546,0.30750882,58938.0,58914.0,0.00339334]
[1724166431831,0.30750882,58938.0,58915.0,0.00339315]
[1724166432341,0.30750882,58938.0,58913.0,0.1821]
[1724166432345,0.30750882,58938.0,58916.0,0.00339332]
[1724166432585,0.30750882,58938.0,58918.0,0.413]
[1724166432833,0.30750882,58938.0,58913.0,0.1821]
[1724166432834,0.30750882,58938.0,58919.0,0.20249293]
[1724166433091,0.30750882,58938.0,58920.0,0.023]
[1724166433577,0.4715118,58938.0,58920.0,0.001]
[1724166433820,0.4715118,58938.0,58917.0,0.023]
[1724166433821,0.07037006,58938.0,58927.0,0.001]
[1724166434084,0.02661352,58983.0,58931.0,0.001]
[1724166434085,0.004,58979.0,58931.0,0.001]
[1724166434347,0.49229154,58949.0,58932.0,0.01683939]
[1724166434648,0.757,58973.0,58933.0,0.00339063]
[1724166434649,0.16400298,58948.0,58933.0,0.00339063]
[1724166434862,0.16400298,58948.0,58934.0,0.023]
[1724166435095,0.16400298,58948.0,58934.0,0.00339072]
[1724166435331,0.16400298,58948.0,58929.0,0.1]
[1724166435618,0.16400298,58948.0,58930.0,0.023]
[1724166436143,0.16400298,58948.0,58931.0,0.1362]
[1724166436413,0.16400298,58948.0,58932.0,0.4329]
[1724166436666,0.16400298,58948.0,58934.0,0.4099]
[1724166436948,0.16400298,58948.0,58933.0,0.2362]
[1724166436949,0.16400298,58948.0,58935.0,0.023]
[1724166437212,0.16400298,58948.0,58936.0,0.43812]
[1724166437482,0.16400298,58948.0,58937.0,0.023]
[1724166438503,0.16400298,58948.0,58936.0,0.4099]
[1724166438713,0.04445888,58971.0,58936.0,0.4099]
[1724166438714,0.16400298,58944.0,58938.0,0.00339105]
[1724166438950,0.1,58975.0,58939.0,0.00339068]
[1724166438951,0.002,58969.0,58939.0,0.00339068]
[1724166439213,0.49229154,58956.0,58940.0,0.3864]
[1724166439468,0.16400298,58955.0,58941.0,0.00338934]
[1724166439710,0.16400298,58955.0,58940.0,0.3864]
[1724166439990,0.16400298,58955.0,58941.0,0.06196546]
[1724166440268,0.16400298,58955.0,58941.0,0.02332546]
[1724166441109,0.16400298,58953.0,58941.0,0.00032546]
[1724166441574,0.16400298,58953.0,58941.0,0.02332546]
[1724166441825,0.003,58967.0,58942.0,0.3804]
[1724166441826,0.16400298,58948.0,58942.0,0.3804]
[1724166442105,0.16400298,58948.0,58942.0,0.38379043]
[1724166442414,0.16500298,58943.0,58941.0,0.00032546]
[1724166442680,0.16700298,58942.0,58941.0,0.00032546]
[1724166443731,0.16700298,58942.0,58941.0,0.00032547]
[1724166444016,0.16700298,58942.0,58941.0,0.00018323]
[1724166444297,0.003,58931.0,58930.0,0.000822]
[1724166444544,0.16700298,58931.0,58930.0,0.000822]
[1724166445082,0.35190298,58931.0,58930.0,0.000822]
[1724166445443,0.35290298,58931.0,58930.0,0.000822]
[1724166445740,0.34790298,58931.0,58930.0,0.000822]
[1724166445981,0.34790298,58931.0,58901.0,0.00492166]
[1724166445982,0.001,58902.0,58901.0,0.00492166]
[1724166446223,0.16400298,58902.0,58901.0,0.00492166]
[1724166448592,0.16400298,58902.0,58901.0,0.14192166]
[1724166449343,0.16400298,58902.0,58901.0,0.00492166]
[1724166451584,0.135715,58947.0,58901.0,0.00492166]
[1724166451585,0.49329154,58934.0,58901.0,0.02792166]
[1724166451799,0.49329154,58934.0,58902.0,0.02639333]
[1724166451800,0.49229154,58914.0,58902.0,0.02639333]
[1724166452005,0.16400298,58913.0,58903.0,0.469716]
[1724166452229,0.16400298,58913.0,58904.0,0.06022387]
[1724166452441,0.49229154,58934.0,58906.0,0.03383]
[1724166452637,0.49229154,58919.0,58908.0,0.03383]
[1724166452884,0.16400298,58929.0,58910.0,0.03383]
[1724166453099,0.49229154,58934.0,58914.0,0.03383]
[1724166453302,0.49229154,58934.0,58913.0,0.137]
[1724166453303,0.16400298,58933.0,58916.0,0.03383]
[1724166453509,0.16400298,58933.0,58915.0,0.02639272]
[1724166453510,0.16400298,58933.0,58918.0,0.03383]
[1724166453729,0.16400298,58933.0,58920.0,0.03383]
[1724166453973,0.0009064,58948.0,58922.0,0.03383]
[1724166454181,0.49229154,58936.0,58923.0,0.023]
[1724166454380,0.0009064,58948.0,58921.0,0.16]
[1724166454381,0.16400298,58935.0,58921.0,0.16]
[1724166454587,0.0009064,58948.0,58922.0,0.01939255]
[1724166454799,0.16400298,58947.0,58923.0,0.023]
[1724166455014,0.16400298,58947.0,58925.0,0.3841]
[1724166455242,0.16400298,58947.0,58924.0,0.137]
[1724166455243,0.16400298,58947.0,58929.0,0.03683]
[1724166455444,0.16400298,58947.0,58937.0,0.41793]
[1724166455678,0.0009064,58948.0,58941.0,0.03383]
[1724166455894,0.0009064,58948.0,58942.0,0.02638929]
[1724166456103,0.16490938,58948.0,58943.0,0.03383]
[1724166456318,0.0009064,58948.0,58944.0,0.02639007]
[1724166456527,0.0009064,58948.0,58947.0,0.03383]
[1724166456727,0.5774,58988.0,58948.0,0.42883]
[1724166456934,0.16400298,58971.0,58952.0,0.03383]
[1724166457135,0.16400298,58971.0,58956.0,0.03383]
[1724166457339,0.16400298,58971.0,58958.0,0.03383]
[1724166457541,0.001,58995.0,58960.0,0.43053]
[1724166457542,0.412,58995.0,58960.0,0.43053]
[1724166457756,0.23979174,58996.0,58959.0,0.02638664]
[1724166457757,0.49229154,58986.0,58965.0,0.03383]
[1724166457958,0.49229154,58986.0,58968.0,0.3933]
[1724166457959,0.16400298,58985.0,58968.0,0.3933]
[1724166458371,0.16400298,58980.0,58968.0,0.3933]
[1724166458780,0.16400298,58980.0,58969.0,0.00338574]
[1724166458986,0.16400298,58980.0,58970.0,0.00338519]
[1724166459382,0.16400298,58980.0,58971.0,0.023]
[1724166459625,0.0002,58999.0,58971.0,0.023]
[1724166459626,0.0002,58999.0,58972.0,0.00338505]
[1724166459833,0.16400298,58995.0,58974.0,0.3925]
[1724166460048,0.16400298,58995.0,58975.0,0.07057183]
[1724166460255,0.16400298,58995.0,58977.0,0.4055]
[1724166460474,0.16400298,58995.0,58979.0,0.4055]
[1724166460687,0.16400298,58994.0,58979.0,0.4055]
[1724166460908,0.16400298,58994.0,58981.0,0.03383]
[1724166461119,0.0002,58999.0,58981.0,0.03383]
[1724166461120,0.0002,58999.0,58982.0,0.46571157]
[1724166461330,0.16400298,58998.0,58982.0,0.46571157]
[1724166461750,0.49229154,58995.0,58982.0,0.46571157]
[1724166461956,0.0002,58999.0,58983.0,0.00338194]
[1724166461957,0.16400298,58994.0,58983.0,0.00338194]
[1724166462187,0.16400298,58994.0,58984.0,0.023]
[1724166462389,0.16400298,58994.0,58985.0,0.00338263]
[1724166462600,0.16400298,58994.0,58986.0,0.023]
[1724166462812,0.16400298,58994.0,58987.0,0.00338263]
[1724166463069,0.0002,58999.0,58987.0,0.00338263]
[1724166463070,0.0002,58999.0,58989.0,0.1361]
[1724166463315,0.0002,58999.0,58991.0,0.4116]
[1724166463534,0.0002,58999.0,58989.0,0.16993]
[1724166463535,0.0002,58999.0,58957.0,1.34562785]
[1724166463536,0.09870101,58989.0,58957.0,1.34562785]
[1724166463735,0.001,58958.0,58957.0,1.34562785]
[1724166463946,0.001,58960.0,58957.0,1.34562785]
[1724166464144,0.5702,58965.0,58957.0,1.34562785]
[1724166464562,0.16400298,58958.0,58957.0,1.21106507]
[1724166464975,0.17400308,58958.0,58957.0,1.21106507]
[1724166465390,0.17300308,58958.0,58957.0,1.21106507]
[1724166465599,0.17300308,58958.0,58957.0,0.88244654]
[1724166465801,0.18854664,58958.0,58957.0,0.88244654]
[1724166466019,0.17300308,58958.0,58957.0,0.88244654]
[1724166466633,0.18834768,58958.0,58957.0,0.88244654]
[1724166467036,0.20389153,58958.0,58957.0,0.88244654]
[1724166468043,0.16400298,58958.0,58957.0,0.88244654]
[1724166468378,0.2038931,58958.0,58957.0,0.88244654]
[1724166468579,0.20389526,58958.0,58957.0,0.88244654]
[1724166468706,0.18854607,58958.0,58957.0,0.88244654]
[1724166469118,0.17300211,58958.0,58957.0,0.88244654]
[1724166470524,0.18791068,58958.0,58957.0,0.88244654]
[1724166471781,0.164581,58958.0,58957.0,0.88244654]
[1724166472003,0.18787952,58958.0,58957.0,0.88244654]
[1724166472997,0.69671952,58958.0,58957.0,0.88244654]
[1724166473209,0.71223688,58958.0,58957.0,0.88244654]
[1724166475503,0.71224086,58958.0,58957.0,0.52250757]
[1724166477789,0.71224086,58958.0,58957.0,0.52333157]
[1724166478209,0.71314726,58958.0,58957.0,0.52333157]